bitfinex/quotes_SOLUSD_20240809
["timestamp","ask_amount","ask_price","bid_price","bid_amount"]
[1723210212479,27.99,155.23,155.16,27.99]
[1723210212770,27.99,155.21,155.14,27.99]
[1723210212976,27.99,155.22,155.15,27.99]
[1723210213176,27.99,155.25,155.18,27.99]
[1723210213464,27.99,155.24,155.19,45.0]
[1723210213685,27.99,155.23,155.16,27.99]
[1723210213848,27.99,155.22,155.15,27.99]
[1723210214174,27.99,155.23,155.16,27.99]
[1723210214473,27.99,155.22,155.16,1.11911421]
[1723210214643,27.99,155.19,155.13,15.1776]
[1723210214842,27.99,155.17,155.1,27.99]
[1723210215170,27.99,155.16,155.09,44.2959]
[1723210215573,27.99,155.16,155.09,16.3059]
[1723210216172,27.99,155.15,155.09,16.3059]
[1723210216471,27.99,155.13,155.06,27.99]
[1723210216665,27.99,155.12,155.04,43.5105]
[1723210216878,27.99,155.11,155.04,15.5205]
[1723210217055,27.99,155.11,155.04,43.5105]
[1723210217668,6.2735,155.17,155.0,35.97]
[1723210217669,7.88527929,155.17,155.0,35.97]
[1723210217872,42.4172,155.11,155.0,35.97]
[1723210218056,35.97,155.09,154.99,6.6376]
[1723210218370,35.97,155.07,154.99,6.6376]
[1723210218574,37.58237764,155.12,154.95,6.4438]
[1723210218575,35.97,155.05,154.95,6.4438]
[1723210218871,35.97,155.12,154.95,6.4438]
[1723210218872,35.97,155.03,154.95,6.4438]
[1723210219671,35.97,155.12,154.98,35.97]
[1723210219672,35.97,155.09,154.98,35.97]
[1723210219873,35.97,155.09,155.0,35.97]
[1723210220084,42.5125,155.11,155.01,1.12300499]
[1723210220288,42.5125,155.11,155.0,35.97]
[1723210220459,42.5125,155.11,154.97,8.15372615]
[1723210220460,35.97,155.09,154.98,35.97]
[1723210220658,6.5425,155.11,154.98,35.97]
[1723210220979,35.97,155.07,154.96,35.97]
[1723210221148,35.97,155.05,154.95,6.4438]
[1723210221573,35.97,155.03,154.95,6.4438]
[1723210222462,35.97,155.03,154.92,51.7928]
[1723210222976,35.97,155.03,154.93,20.0]
[1723210223357,35.97,155.01,154.92,15.8228]
[1723210223552,35.97,154.99,154.92,15.8228]
[1723210223762,35.97,155.01,154.93,1.12519551]
[1723210224082,35.97,155.01,154.9,50.38722615]
[1723210224083,35.97,155.01,154.9,43.35853748]
[1723210224262,35.97,154.99,154.9,42.2335]
[1723210224462,35.97,154.99,154.9,6.2635]
[1723210225450,35.97,154.99,154.9,43.35883665]
[1723210225650,35.97,155.06,154.96,35.97]
[1723210225880,35.97,155.08,154.97,1.12380984]
[1723210226050,35.97,155.1,154.98,35.97]
[1723210226365,35.97,155.1,154.99,45.0]
[1723210226681,35.97,155.08,154.99,45.0]
[1723210227185,6.4475,155.1,154.99,54.27714962]
[1723210227186,35.97,155.1,154.99,54.27714962]
[1723210227373,2.53186974,155.16,155.01,8.15372615]
[1723210227374,35.97,155.12,155.01,8.15372615]
[1723210227569,35.97,155.12,155.02,45.0]
[1723210227875,35.97,155.1,155.02,45.0]
[1723210228079,35.97,155.1,154.98,35.97]
[1723210228266,35.97,155.1,155.0,35.97]
[1723210228580,35.97,155.1,155.01,46.12273836]
[1723210228754,35.97,155.1,155.01,45.0]
[1723210229488,42.4174,155.1,155.01,45.0]
[1723210229660,42.4174,155.1,155.0,45.0]
[1723210229860,35.97,155.1,155.01,1.12342993]
[1723210230074,35.97,155.1,155.0,45.0]
[1723210230264,35.97,155.08,155.0,45.0]
[1723210230587,35.97,155.06,154.97,16.0396]
[1723210230879,35.97,155.04,154.97,16.0396]
[1723210231095,35.97,155.02,154.92,16.4606]
[1723210231381,35.97,154.98,154.9,6.2635]
[1723210231584,35.97,154.98,154.88,35.97]
[1723210231757,35.97,154.95,154.87,16.4606]
[1723210231958,35.97,154.91,154.8,35.97]
[1723210232172,35.97,154.89,154.8,35.97]
[1723210232391,35.97,154.96,154.8,35.97]
[1723210232392,35.97,154.91,154.8,35.97]
[1723210232602,37.5841535,154.91,154.8,35.97]
[1723210232896,6.5236,154.95,154.76,35.97]
[1723210232897,35.97,154.87,154.76,35.97]
[1723210233060,35.97,154.89,154.78,35.97]
[1723210233393,6.5236,154.95,154.8,35.97]
[1723210233394,35.97,154.91,154.8,35.97]
[1723210233752,35.97,154.89,154.78,35.97]
[1723210234178,35.97,154.91,154.8,35.97]
[1723210234480,35.97,154.89,154.8,35.97]
[1723210234858,35.97,154.91,154.8,35.97]
[1723210235279,35.97,154.91,154.81,1.12832805]
[1723210235578,35.97,154.93,154.84,1.12781468]
[1723210235784,35.97,154.97,154.84,8.15372615]
[1723210235986,6.3589,155.07,154.91,35.97]
[1723210236196,6.3589,155.07,154.92,45.0]
[1723210236197,35.97,154.99,154.92,45.0]
[1723210236914,35.97,154.99,154.87,51.8447]
[1723210236915,35.97,154.99,154.89,35.97]
[1723210237068,35.97,154.99,154.9,45.0]
[1723210237477,35.97,155.01,154.91,35.97]
[1723210237672,35.97,155.03,154.93,35.97]
[1723210237891,35.97,155.03,154.93,45.2483761]
[1723210238175,35.97,155.05,154.94,45.0]
[1723210238399,35.97,155.03,154.94,45.0]
[1723210238898,42.5784,155.12,154.94,45.0]
[1723210238899,35.97,155.05,154.94,45.0]
[1723210239087,35.97,155.05,154.95,35.97]
[1723210239287,35.97,155.05,154.96,45.0]
[1723210239909,35.97,155.09,154.99,44.12372615]
[1723210240113,35.97,155.09,155.0,46.12317563]
[1723210240408,35.97,155.11,155.01,44.12372615]
[1723210240574,35.97,155.15,155.03,44.12372615]
[1723210240779,35.97,155.15,155.04,46.12220591]
[1723210240988,35.97,155.15,155.05,37.09209202]
[1723210241208,35.97,155.13,155.06,45.0]
[1723210241707,35.97,155.15,155.07,1.12218235]
[1723210241883,35.97,155.15,155.08,1.12182432]
[1723210242073,35.97,155.13,155.06,45.0]
[1723210242677,1.61188551,155.19,155.01,35.97]
[1723210242678,35.97,155.11,155.01,35.97]
[1723210242876,35.97,155.11,155.04,45.0]
[1723210243103,35.97,155.11,155.03,45.0]
[1723210243703,35.97,155.09,155.03,45.0]
[1723210243920,35.97,155.07,154.97,6.1646]
[1723210244097,35.97,155.05,154.93,51.6295]
[1723210244299,35.97,155.05,154.95,35.97]
[1723210245023,35.97,155.03,154.93,51.6295]
[1723210245189,35.97,155.03,154.93,52.75402328]
[1723210245387,35.97,155.03,154.93,60.90774943]
[1723210245588,35.97,155.03,154.94,20.0]
[1723210245797,35.97,155.03,154.93,15.6595]
[1723210245988,35.97,154.97,154.91,6.1763]
[1723210246184,35.97,154.95,154.87,16.3692]
[1723210246615,1.61369462,155.03,154.87,16.3692]
[1723210246834,35.97,154.99,154.88,57.0960909]
[1723210246993,20.0,155.08,154.9,55.97]
[1723210246994,35.97,155.01,154.9,55.97]
[1723210247191,35.97,155.03,154.92,35.97]
[1723210247499,35.97,155.03,154.93,1.12488143]
[1723210247705,35.97,155.03,154.93,21.12488143]
[1723210248026,35.97,155.05,154.96,35.97]
[1723210248212,35.97,155.07,154.97,66.12358608]
[1723210248401,35.97,155.09,154.98,35.97]
[1723210248594,35.97,155.07,154.99,65.0]
[1723210248793,35.97,155.07,154.97,65.0]
[1723210248794,35.97,155.07,155.0,45.0]
[1723210249016,35.97,155.07,154.97,66.12392124]
[1723210249321,35.97,155.09,154.99,15.1436]
[1723210249523,35.97,155.09,155.0,65.0]
[1723210250195,35.97,155.12,155.0,100.97]
[1723210250395,35.97,155.12,155.02,35.97]
[1723210250715,35.97,155.12,155.03,45.0]
[1723210250909,35.97,155.12,155.04,1.12236152]
[1723210251095,35.97,155.14,155.03,45.0]
[1723210251615,35.97,155.12,155.03,45.0]
[1723210251794,1.61199267,155.11,155.03,45.0]
[1723210251991,37.58210202,155.1,155.03,45.0]
[1723210252197,35.97,155.2,154.99,15.1436]
[1723210252198,35.97,155.06,154.99,15.1436]
[1723210252401,1.61264381,155.05,154.99,15.1436]
[1723210252605,35.97,155.04,154.99,15.1436]
[1723210252933,35.97,155.04,154.9,20.0]
[1723210252934,35.97,155.02,154.93,15.669]
[1723210253099,35.97,155.0,154.93,15.669]
[1723210253905,35.97,155.02,154.93,15.669]
[1723210254796,61.0453,155.11,154.96,35.97]
[1723210255129,35.97,155.06,154.96,35.97]
[1723210255303,35.97,155.06,154.97,45.0]
[1723210255794,50.4484,155.08,154.97,45.0]
[1723210255991,20.0,155.07,154.97,45.0]
[1723210256194,6.4503,155.04,154.93,15.669]
[1723210256414,6.4508,155.02,154.93,15.669]
[1723210256618,1.61307165,155.03,154.88,15.38]
[1723210256619,44.0,154.99,154.88,15.38]
[1723210256805,50.4536,154.96,154.88,15.38]
[1723210257009,1.6138512,154.95,154.83,0.7972605]
[1723210257197,44.0,154.96,154.83,0.7972605]
[1723210257511,44.0,154.99,154.85,28.15372615]
[1723210257716,44.0,155.02,154.86,1.12596723]
[1723210257919,65.61343544,155.02,154.86,1.12592662]
[1723210258122,65.6135526,155.02,154.86,21.1262078]
[1723210258309,44.0,154.99,154.86,20.0]
[1723210258502,44.0,154.99,154.83,21.92354377]
[1723210258700,50.4522,154.99,154.84,1.12628407]
[1723210258899,44.0,154.99,154.85,1.12627568]
[1723210259099,1.613533,154.98,154.83,20.7972605]
[1723210259312,6.4524,154.98,154.84,1.12665697]
[1723210259626,44.0,154.96,154.83,0.7972605]
[1723210259828,44.0,154.93,154.83,0.7972605]
[1723210260525,44.0,154.96,154.83,1.92462284]
[1723210260710,44.0,154.9,154.83,0.7972605]
[1723210261112,1.61434481,154.89,154.83,0.7972605]
[1723210261411,50.4582,154.84,154.83,0.7972605]
[1723210261828,70.4582,154.84,154.83,0.7972605]
[1723210262031,64.0,154.84,154.83,0.7972605]
[1723210262604,20.0,154.84,154.83,0.7972605]
[1723210263118,44.0,154.87,154.83,0.7972605]
[1723210263407,20.0,154.86,154.83,0.7972605]
[1723210263829,44.0,154.9,154.83,0.7972605]
[1723210264125,44.0,154.87,154.83,0.7972605]
[1723210264704,20.0,154.86,154.83,0.7972605]
[1723210265003,6.4579,154.85,154.83,0.7972605]
[1723210265225,20.0,154.86,154.83,0.7972605]
[1723210265420,44.0,154.9,154.83,0.7972605]
[1723210265616,20.0,154.89,154.83,0.7972605]
[1723210265905,21.61451668,154.89,154.83,0.7972605]
[1723210266203,44.0,154.87,154.83,0.7972605]
[1723210266411,20.0,154.86,154.83,0.7972605]
[1723210266735,6.4582,154.85,154.83,0.7972605]
[1723210266911,64.0,154.84,154.83,0.7972605]
[1723210267110,70.4582,154.84,154.83,0.7972605]
[1723210267434,70.4582,154.84,154.71,15.7825]
[1723210267435,6.4603,154.8,154.71,15.7825]
[1723210267602,1.61550476,154.79,154.65,34.69888821]
[1723210267804,1.61550476,154.79,154.65,41.45345755]
[1723210268004,1.61550476,154.79,154.66,20.0]
[1723210268232,20.0,154.84,154.72,8.15372615]
[1723210268432,1.61510177,154.83,154.66,20.0]
[1723210268617,1.61510177,154.83,154.68,8.15372615]
[1723210268618,45.61510177,154.83,154.68,8.15372615]
[1723210268815,20.0,154.82,154.69,20.0]
[1723210269135,48.414,154.92,154.71,8.15372615]
[1723210269333,20.0,154.86,154.72,20.0]
[1723210269537,6.4586,154.84,154.72,20.0]
[1723210269724,6.4591,154.82,154.69,1.13056307]
[1723210269917,44.0,154.82,154.68,40.0]
[1723210270239,44.0,154.82,154.69,8.15372615]
[1723210270408,20.0,154.83,154.7,21.13000734]
[1723210270603,20.0,154.84,154.7,1.13000734]
[1723210270906,64.0,154.84,154.7,20.0]
[1723210271232,70.4583,154.84,154.71,1.13053252]
[1723210271532,303.2,154.87,154.74,8.15372615]
[1723210271737,303.2,154.87,154.76,16.172]
[1723210271939,303.2,154.87,154.77,1.12941555]
[1723210272239,381.2,154.91,154.77,1.12941555]
[1723210272240,44.0,154.9,154.78,8.15372615]
[1723210272438,50.621,154.93,154.8,8.15372615]
[1723210272612,1.61429366,154.92,154.81,45.0]
[1723210272921,50.621,154.93,154.79,45.0]
[1723210272922,44.0,154.9,154.79,45.0]
[1723210273132,44.0,154.9,154.8,1.12828193]
[1723210273309,44.0,154.96,154.8,29.28200808]
[1723210273505,6.4537,154.95,154.81,65.0]
[1723210273711,6.4537,154.95,154.82,1.12723695]
[1723210273911,6.4548,154.93,154.81,73.15372615]
[1723210274128,6.4555,154.91,154.81,65.0]
[1723210274312,44.0,154.93,154.81,65.0]
[1723210275018,1.61403053,154.95,154.81,73.15372615]
[1723210275214,50.4533,154.96,154.85,8.15372615]
[1723210275215,44.0,154.96,154.85,8.15372615]
[1723210275436,44.0,154.99,154.86,46.12649268]
[1723210275610,6.4516,155.0,154.86,46.12649268]
[1723210275611,50.4511,155.02,154.88,6.133]
[1723210275814,6.4515,155.01,154.89,46.12577972]
[1723210276034,6.4515,155.01,154.89,45.0]
[1723210276248,6.4519,155.0,154.89,45.0]
[1723210276457,6.4518,155.0,154.89,45.0]
[1723210277043,6.4526,154.98,154.89,45.0]
[1723210277357,64.0,154.99,154.89,45.0]
[1723210277714,1.61337691,154.98,154.89,45.0]
[1723210278039,1.61343036,154.98,154.89,45.0]
[1723210278244,8.06593036,154.98,154.89,45.0]
[1723210278744,1.61343036,154.98,154.89,45.0]
[1723210278947,6.4541,154.94,154.86,16.4801]
[1723210279242,44.0,154.96,154.86,16.4801]
[1723210279415,26.454,154.95,154.86,16.4801]
[1723210279618,20.0,154.95,154.86,16.4801]
[1723210280254,1.61373381,154.94,154.87,45.0]
[1723210280543,21.61391784,154.95,154.87,45.0]
[1723210280762,20.0,154.95,154.87,45.0]
[1723210281051,44.0,154.93,154.83,6.4063]
[1723210281216,6.4566,154.88,154.81,15.8666]
[1723210281425,45.61464304,154.87,154.75,15.8666]
[1723210281840,20.0,154.86,154.75,15.8666]
[1723210282027,44.0,154.84,154.75,15.8666]
[1723210282232,21.6151323,154.83,154.75,15.8666]
[1723210282544,44.0,154.87,154.75,15.8666]
[1723210282732,6.4584,154.84,154.75,15.8666]
[1723210282946,1.61509372,154.83,154.75,15.8666]
[1723210283120,1.61509184,154.82,154.75,15.8666]
[1723210283320,20.0,154.84,154.75,15.8666]
[1723210283724,28.07289184,154.85,154.75,15.8666]
[1723210283921,6.4582,154.84,154.75,15.8666]
[1723210284116,21.61509184,154.85,154.7,15.9744]
[1723210284117,6.4599,154.8,154.7,15.9744]
[1723210284353,65.61553164,154.79,154.7,15.9744]
[1723210284522,44.0,154.79,154.7,15.9744]
[1723210284860,20.0,154.78,154.7,15.9744]
[1723210285758,20.0,154.8,154.71,46.13083884]
[1723210286052,303.2,154.87,154.72,8.15372615]
[1723210286219,6.4574,154.86,154.73,46.12932183]
[1723210286416,45.61497203,154.87,154.73,45.0]
[1723210286620,6.4591,154.82,154.73,45.0]
[1723210286846,52.0737845,154.84,154.7,35.9744]
[1723210287043,50.4586,154.84,154.71,21.12988425]
[1723210287348,20.0,154.83,154.71,21.12988425]
[1723210287573,44.0,154.87,154.73,44.0]
[1723210287735,44.0,154.87,154.74,21.12920869]
[1723210288127,50.4561,154.9,154.76,6.4048]
[1723210288325,44.0,154.9,154.77,46.12877117]
[1723210288556,6.4582,154.85,154.77,45.0]
[1723210288753,8.07234363,154.86,154.77,45.0]
[1723210288962,1.61484363,154.84,154.77,45.0]
[1723210289437,44.0,154.87,154.77,45.0]
[1723210289765,309.4179,154.93,154.78,9.28255745]
[1723210289944,309.4179,154.93,154.79,45.0]
[1723210290138,6.4552,154.92,154.8,1.12818169]
[1723210290474,44.0,154.93,154.81,15.0586]
[1723210290766,6.4564,154.89,154.82,45.0]
[1723210291460,44.0,154.9,154.81,15.0586]
[1723210291663,6.457,154.87,154.81,15.0586]
[1723210292051,6.4574,154.86,154.76,22.939]
[1723210292370,44.0,154.87,154.77,20.0]
[1723210292668,6.4578,154.85,154.76,22.939]
[1723210292967,6.4595,154.81,154.7,22.6652]
[1723210293343,28.07542391,154.8,154.7,22.6652]
[1723210293545,20.0,154.8,154.7,22.6652]
[1723210294362,6.4604,154.79,154.7,16.5342]
[1723210294538,20.0,154.8,154.7,16.5342]
[1723210294737,6.4604,154.79,154.7,16.5342]
[1723210295766,20.0,154.8,154.7,16.5342]
[1723210295957,1.12376269,154.83,154.71,1.13043906]
[1723210296147,20.0,154.83,154.71,1.13043906]
[1723210296664,20.0,154.83,154.71,46.13043906]
[1723210296970,275.3421,154.88,154.71,66.13043906]
[1723210297150,6.4583,154.84,154.72,28.15372615]
[1723210297338,6.4588,154.83,154.73,45.0]
[1723210297543,51.76360543,154.87,154.73,45.0]
[1723210297767,6.4593,154.82,154.73,45.0]
[1723210298077,6.4587,154.83,154.73,45.0]
[1723210298365,44.0,154.81,154.7,16.5342]
[1723210298546,6.4612,154.77,154.7,16.5342]
[1723210298858,6.4613,154.77,154.7,16.5342]
[1723210299061,44.0,154.78,154.7,16.5342]
[1723210299377,20.0,154.77,154.7,16.5342]
[1723210300467,50.4595,154.81,154.71,1.13084039]
[1723210300862,6.4592,154.82,154.71,1.13084039]
[1723210301176,6.4592,154.82,154.7,16.5342]
[1723210301177,44.0,154.81,154.7,16.5342]
[1723210301396,1.61570288,154.8,154.7,16.5342]
[1723210301668,89.0,154.81,154.7,16.5342]
[1723210301669,6.4613,154.77,154.7,16.5342]
[1723210301869,6.4608,154.78,154.7,16.5342]
[1723210302074,45.61577273,154.78,154.67,0.7972605]
[1723210302274,6.4633,154.72,154.67,0.7972605]
[1723210302479,1.61617342,154.71,154.67,0.7972605]
[1723210302684,8.08074908,154.7,154.67,0.7972605]
[1723210302976,20.0,154.71,154.67,0.7972605]
[1723210303180,44.0,154.75,154.67,0.7972605]
[1723210303371,6.6557,154.68,154.56,6.75243356]
[1723210303548,44.0,154.66,154.51,44.0]
[1723210303742,1.61698763,154.65,154.51,44.0]
[1723210303944,1.61712258,154.64,154.51,44.0]
[1723210304247,8.08382258,154.64,154.49,22.95563263]
[1723210304446,1.61712258,154.64,154.5,20.0]
[1723210304645,20.0,154.65,154.49,31.10935878]
[1723210304646,44.0,154.69,154.54,20.0]
[1723210304870,50.4633,154.72,154.56,20.0]
[1723210305068,20.0,154.71,154.58,16.5549]
[1723210305371,20.0,154.71,154.59,1.1329232]
[1723210306157,1.61636712,154.7,154.59,45.0]
[1723210306448,20.0,154.71,154.59,45.0]
[1723210306769,1.61636996,154.71,154.61,8.15372615]
[1723210306977,1.61619437,154.73,154.62,45.0]
[1723210307281,8.07929437,154.73,154.62,45.0]
[1723210307454,8.07929437,154.73,154.61,45.0]
[1723210307657,1.61619437,154.73,154.61,45.0]
[1723210307976,8.07929437,154.73,154.61,45.0]
[1723210308149,44.0,154.78,154.62,41.13274183]
[1723210308352,6.4613,154.77,154.63,45.0]
[1723210308582,38.4176,154.83,154.66,8.15372615]
[1723210308583,44.0,154.81,154.66,8.15372615]
[1723210308748,44.0,154.81,154.67,66.13104452]
[1723210309077,1.61553558,154.83,154.68,16.25996697]
[1723210309290,1.61524048,154.82,154.69,89.0]
[1723210309574,6.4593,154.82,154.69,109.0]
[1723210309777,1.61523758,154.81,154.69,97.15372615]
[1723210309975,1.61523758,154.81,154.69,89.0]
[1723210310177,6.4593,154.82,154.69,89.0]
[1723210310354,6.4593,154.82,154.69,90.13061421]
[1723210310554,6.4603,154.8,154.68,15.129]
[1723210310770,44.0,154.81,154.69,28.15372615]
[1723210311059,6.4609,154.78,154.68,15.129]
[1723210311264,1.61577636,154.77,154.68,15.129]
[1723210311576,8.07745836,154.76,154.68,15.129]
[1723210311889,44.0,154.78,154.68,15.129]
[1723210312181,50.4586,154.84,154.69,1.13127972]
[1723210312360,1.61528822,154.83,154.68,15.129]
[1723210312680,1.61557841,154.82,154.69,65.0]
[1723210312890,44.0,154.88,154.7,26.2436]
[1723210313191,44.0,154.91,154.75,44.0]
[1723210313486,44.0,154.91,154.76,20.0]
[1723210313648,44.0,154.91,154.77,45.0]
[1723210313844,1.61463478,154.9,154.78,20.0]
[1723210314049,45.61452273,154.91,154.77,45.0]
[1723210314249,6.4569,154.88,154.78,20.0]
[1723210314447,45.61481886,154.88,154.72,44.0]
[1723210314682,45.61481886,154.88,154.73,20.0]
[1723210315148,20.0,154.87,154.73,20.0]
[1723210315355,1.61494407,154.86,154.73,20.0]
[1723210315553,1.61499018,154.85,154.73,20.0]
[1723210315774,1.61499018,154.85,154.74,45.0]
[1723210316086,6.4591,154.82,154.73,20.0]
[1723210316279,1.6154085,154.81,154.7,6.2436]
[1723210317693,1.6154085,154.81,154.71,20.0]
[1723210318596,1.6154085,154.81,154.72,45.0]
[1723210319859,45.61539829,154.82,154.72,45.0]
[1723210320060,1.61511796,154.81,154.72,45.0]
[1723210320884,44.0,154.85,154.72,45.0]
[1723210321182,44.0,154.85,154.7,6.2436]
[1723210321183,44.0,154.79,154.7,6.2436]
[1723210321483,1.61566897,154.78,154.7,6.2436]
[1723210321689,6.4624,154.74,154.65,6.4834]
[1723210321862,45.61636646,154.73,154.62,16.6332]
[1723210322061,44.0,154.7,154.62,16.6332]
[1723210322276,1.61660753,154.69,154.62,16.6332]
[1723210322980,44.0,154.7,154.62,16.6332]
[1723210323381,1.61651644,154.69,154.62,16.6332]
[1723210323560,1.61651644,154.69,154.6,6.4834]
[1723210324287,46.61651644,154.69,154.56,15.36]
[1723210324461,6.4658,154.66,154.56,15.36]
[1723210324673,1.61719686,154.65,154.56,15.36]
[1723210325182,20.0,154.66,154.56,15.36]
[1723210325590,21.6169052,154.66,154.56,15.36]
[1723210326386,6.4663,154.65,154.56,15.36]
[1723210326598,1.61728151,154.64,154.56,15.36]
[1723210327168,1.61728151,154.64,154.52,0.7972605]
[1723210327169,50.4679,154.61,154.52,0.7972605]
[1723210327390,1.6177024,154.6,154.52,0.7972605]
[1723210327602,44.0,154.61,154.52,0.7972605]
[1723210327981,45.6176967,154.61,154.52,0.7972605]
[1723210328501,44.0,154.61,154.52,0.7972605]
[1723210328999,45.61763764,154.64,154.52,0.7972605]
[1723210329189,20.0,154.63,154.52,0.7972605]
[1723210329498,1.6174229,154.62,154.52,0.7972605]
[1723210329688,8.0850229,154.62,154.52,0.7972605]
[1723210330069,1.6174229,154.62,154.52,0.7972605]
[1723210330493,6.4683,154.6,154.52,0.7972605]
[1723210330799,44.0,154.61,154.52,0.7972605]
[1723210331097,20.0,154.6,154.52,0.7972605]
[1723210332090,1.61777722,154.59,154.52,0.7972605]
[1723210332619,8.08657722,154.59,154.52,0.7972605]
[1723210332973,20.0,154.6,154.52,0.7972605]
[1723210333181,44.0,154.58,154.52,0.7972605]
[1723210333476,44.0,154.55,154.52,0.7972605]
[1723210333796,45.12417043,154.58,154.52,0.7972605]
[1723210334003,20.0,154.6,154.52,0.7972605]
[1723210334211,21.6176359,154.6,154.52,0.7972605]
[1723210334508,45.12371881,154.64,154.52,0.7972605]
[1723210334676,21.8903,154.69,154.53,16.21734468]
[1723210334677,44.0,154.67,154.53,16.21734468]
[1723210334878,44.0,154.7,154.55,6.4483]
[1723210335104,44.0,154.73,154.58,8.15372615]
[1723210335298,44.0,154.73,154.59,66.13350816]
[1723210335489,44.0,154.76,154.6,35.0824]
[1723210335690,44.0,154.76,154.61,66.13224054]
[1723210335894,44.0,154.76,154.61,65.0]
[1723210336095,6.4624,154.74,154.61,65.0]
[1723210336393,52.07918125,154.73,154.61,65.0]
[1723210336584,45.61628125,154.73,154.61,45.0]
[1723210336784,44.0,154.73,154.62,1.13354933]
[1723210336980,44.0,154.73,154.61,45.0]
[1723210337211,45.61623741,154.73,154.61,45.0]
[1723210337791,44.0,154.73,154.61,45.0]
[1723210337991,1.61636576,154.72,154.61,45.0]
[1723210338191,20.0,154.72,154.61,45.0]
[1723210339208,21.61635979,154.72,154.61,45.0]
[1723210339581,44.0,154.7,154.61,45.0]
[1723210339813,1.61666743,154.69,154.61,45.0]
[1723210340177,20.0,154.72,154.61,45.0]
[1723210340393,21.6162998,154.72,154.61,45.0]
[1723210340585,21.6162998,154.72,154.6,15.0824]
[1723210341094,6.4641,154.7,154.6,15.0824]
[1723210341292,1.61664617,154.69,154.6,15.0824]
[1723210341685,20.0,154.72,154.6,15.0824]
[1723210342198,1.61640441,154.71,154.6,15.0824]
[1723210342404,1.61666717,154.7,154.6,15.0824]
[1723210342619,20.0,154.72,154.61,45.0]
[1723210343007,7.37492052,154.79,154.61,45.0]
[1723210343008,44.0,154.76,154.61,45.0]
[1723210343212,44.0,154.76,154.62,1.1329993]
[1723210343587,6.4624,154.75,154.61,45.0]
[1723210343799,44.0,154.76,154.61,66.13242916]
[1723210343990,50.4616,154.76,154.61,66.13242916]
[1723210344193,1.61606716,154.75,154.61,45.0]
[1723210344601,7.37492052,154.79,154.62,70.4796]
[1723210344922,44.0,154.8,154.64,28.15372615]
[1723210345088,6.4604,154.79,154.65,21.13130425]
[1723210345289,1.61577472,154.79,154.65,65.0]
[1723210345598,44.0,154.8,154.65,66.13154091]
[1723210345805,44.0,154.8,154.65,66.1315127]
[1723210346010,1.6156711,154.79,154.65,65.0]
[1723210346313,20.0,154.79,154.63,1.13153039]
[1723210346502,26.4607,154.79,154.63,21.13153039]
[1723210347014,26.4603,154.79,154.64,20.0]
[1723210347218,20.0,154.79,154.65,20.0]
[1723210347517,259.2,154.81,154.69,14.25072615]
[1723210347725,44.0,154.83,154.7,65.0]
[1723210347902,44.0,154.86,154.72,15.9408]
[1723210348225,6.4561,154.9,154.75,6.2743]
[1723210348411,1.61451102,154.9,154.76,65.0]
[1723210348716,44.0,154.89,154.77,20.0]